[Event "*** Titled Tuesday Blitz"]
[Site "Chess.com"]
[Date "2021.03.02"]
[Round "1"]
[White "Grandmaster2B"]
[Black "gisela_roque"]
[Result "1-0"]
[WhiteElo "2479"]
[BlackElo "1736"]
[TimeControl "180+1"]
[EndTime "10:05:36 PST"]
[Termination "Grandmaster2B won on time"]

1. e4 {[%clk 0:03:00.9]} 1... e6 {[%clk 0:02:59.4]} 2. d4 {[%clk 0:02:59.3]}
2... d5 {[%clk 0:02:59]} 3. Nd2 {[%clk 0:02:59.9]} 3... c5 {[%clk 0:02:55.5]} 4.
Ngf3 {[%clk 0:02:59.5]} 4... Nc6 {[%clk 0:02:45.1]} 5. Bb5 {[%clk 0:02:54]} 5...
cxd4 {[%clk 0:02:41]} 6. Nxd4 {[%clk 0:02:54.9]} 6... Bd7 {[%clk 0:02:37.8]} 7.
Nxc6 {[%clk 0:02:54.9]} 7... bxc6 {[%clk 0:02:36.6]} 8. Bd3 {[%clk 0:02:55.6]}
8... Bd6 {[%clk 0:02:22.8]} 9. O-O {[%clk 0:02:54.2]} 9... Nf6 {[%clk 0:02:20]}
10. Qe2 {[%clk 0:02:47.8]} 10... e5 {[%clk 0:02:10.3]} 11. c3 {[%clk 0:02:44.9]}
11... O-O {[%clk 0:02:10]} 12. Nb3 {[%clk 0:02:42.7]} 12... h6 {[%clk
0:02:02.8]} 13. Rd1 {[%clk 0:02:36.4]} 13... a5 {[%clk 0:01:50.9]} 14. Nd2
{[%clk 0:02:27.1]} 14... Qb6 {[%clk 0:01:37.2]} 15. Kh1 {[%clk 0:02:13.2]} 15...
Rfe8 {[%clk 0:00:58.2]} 16. Nf3 {[%clk 0:02:10.9]} 16... Bc5 {[%clk 0:00:52.7]}
17. Rf1 {[%clk 0:02:02.6]} 17... Ng4 {[%clk 0:00:51.7]} 18. Kg1 {[%clk
0:02:02.3]} 18... a4 {[%clk 0:00:29.8]} 19. h3 {[%clk 0:02:01]} 19... Nf6 {[%clk
0:00:29.4]} 20. Rb1 {[%clk 0:01:59.5]} 20... dxe4 {[%clk 0:00:17.6]} 21. Bxe4
{[%clk 0:01:59.6]} 21... Nxe4 {[%clk 0:00:17.7]} 22. Qxe4 {[%clk 0:02:00.5]}
22... Be6 {[%clk 0:00:15.1]} 23. b3 {[%clk 0:01:57.4]} 23... Bd5 {[%clk
0:00:15.1]} 24. Qe2 {[%clk 0:01:54.1]} 24... e4 {[%clk 0:00:14.7]} 25. Ne1
{[%clk 0:01:51.5]} 25... e3 {[%clk 0:00:13.3]} 26. f3 {[%clk 0:01:49.4]} 26...
Qc7 {[%clk 0:00:09.6]} 27. Nd3 {[%clk 0:01:47.8]} 27... Bb6 {[%clk 0:00:09.2]}
28. c4 {[%clk 0:01:48]} 28... Be6 {[%clk 0:00:07.5]} 29. c5 {[%clk 0:01:45.9]}
29... Ba7 {[%clk 0:00:03.3]} 30. Bxe3 {[%clk 0:01:39.1]} 30... Bf5 {[%clk
0:00:03.5]} 31. Rbd1 {[%clk 0:01:39.1]} 1-0

[Event "*** Titled Tuesday Blitz"]
[Site "Chess.com"]
[Date "2021.03.02"]
[Round "1"]
[White "NaciSAN"]
[Black "AlexPapasimakopoulos"]
[Result "0-1"]
[WhiteElo "2298"]
[BlackElo "2600"]
[TimeControl "180+1"]
[EndTime "10:05:37 PST"]
[Termination "AlexPapasimakopoulos won on time"]

1. e4 {[%clk 0:02:56.3]} 1... e6 {[%clk 0:03:00.2]} 2. d4 {[%clk 0:02:55.9]}
2... d5 {[%clk 0:03:00.8]} 3. e5 {[%clk 0:02:56.2]} 3... c5 {[%clk 0:03:00.4]}
4. c3 {[%clk 0:02:56.4]} 4... Nc6 {[%clk 0:03:01.2]} 5. Nf3 {[%clk 0:02:56.8]}
5... Bd7 {[%clk 0:03:01.7]} 6. Na3 {[%clk 0:02:57]} 6... f6 {[%clk 0:03:00.7]}
7. Nc2 {[%clk 0:02:54.1]} 7... fxe5 {[%clk 0:02:58.8]} 8. dxe5 {[%clk 0:02:55]}
8... Qc7 {[%clk 0:02:58.1]} 9. Bf4 {[%clk 0:02:52.3]} 9... Nh6 {[%clk
0:02:58.4]} 10. Bd3 {[%clk 0:02:47.2]} 10... Nf7 {[%clk 0:02:58.2]} 11. O-O
{[%clk 0:02:34.3]} 11... Be7 {[%clk 0:02:58.4]} 12. Re1 {[%clk 0:02:33.3]} 12...
c4 {[%clk 0:02:52.3]} 13. Bf1 {[%clk 0:02:32.6]} 13... g5 {[%clk 0:02:53.2]} 14.
Bg3 {[%clk 0:02:30.6]} 14... h5 {[%clk 0:02:54.1]} 15. h4 {[%clk 0:02:27.1]}
15... gxh4 {[%clk 0:02:53.7]} 16. Nxh4 {[%clk 0:02:25.9]} 16... O-O-O {[%clk
0:02:43.7]} 17. Ng6 {[%clk 0:02:23]} 17... Rh6 {[%clk 0:02:43.8]} 18. Nxe7+
{[%clk 0:02:22.8]} 18... Nxe7 {[%clk 0:02:44.7]} 19. Bh4 {[%clk 0:02:13.3]}
19... Re8 {[%clk 0:02:43.4]} 20. Bxe7 {[%clk 0:02:12.9]} 20... Rxe7 {[%clk
0:02:43]} 21. Qe2 {[%clk 0:01:48.1]} 21... h4 {[%clk 0:02:41.3]} 22. Nd4 {[%clk
0:01:46.2]} 22... Rg6 {[%clk 0:02:32.4]} 23. b4 {[%clk 0:01:36.5]} 23... Rg5
{[%clk 0:02:29]} 24. f4 {[%clk 0:01:34.5]} 24... Rg3 {[%clk 0:02:29]} 25. Rac1
{[%clk 0:01:08.2]} 25... Nh6 {[%clk 0:02:25.1]} 26. Qh5 {[%clk 0:00:57.1]} 26...
Nf5 {[%clk 0:02:10.5]} 27. Nxf5 {[%clk 0:00:50.5]} 27... exf5 {[%clk 0:02:11.4]}
28. Qxh4 {[%clk 0:00:50.5]} 28... Qb6+ {[%clk 0:02:07.7]} 29. Kh2 {[%clk
0:00:39.4]} 29... Rgg7 {[%clk 0:02:07.4]} 30. Qf6 {[%clk 0:00:27]} 30... Bc6
{[%clk 0:01:53.6]} 31. Qxf5+ {[%clk 0:00:15.9]} 31... Kc7 {[%clk 0:01:51.6]} 32.
Qf6 {[%clk 0:00:07.1]} 32... Qf2 {[%clk 0:01:49.7]} 33. e6 {[%clk 0:00:01.9]}
33... Rh7+ {[%clk 0:01:49.4]} 0-1

[Event "*** Titled Tuesday Blitz"]
[Site "Chess.com"]
[Date "2021.03.02"]
[Round "1"]
[White "ErikRonka"]
[Black "Hikaru"]
[Result "0-1"]
[WhiteElo "2477"]
[BlackElo "3240"]
[TimeControl "180+1"]
[EndTime "10:05:39 PST"]
[Termination "Hikaru won by resignation"]

1. e4 {[%clk 0:03:00.9]} 1... e5 {[%clk 0:02:58.1]} 2. Nc3 {[%clk 0:03:00.3]}
2... Nc6 {[%clk 0:02:57.6]} 3. Bc4 {[%clk 0:03:00.6]} 3... Bc5 {[%clk
0:02:56.5]} 4. Qg4 {[%clk 0:03:00.3]} 4... g6 {[%clk 0:02:54.9]} 5. Qg3 {[%clk
0:02:59.7]} 5... Nf6 {[%clk 0:02:54.9]} 6. d3 {[%clk 0:02:59.2]} 6... Nh5 {[%clk
0:02:53.3]} 7. Qf3 {[%clk 0:02:49.9]} 7... O-O {[%clk 0:02:53.4]} 8. Nge2 {[%clk
0:02:42.9]} 8... Na5 {[%clk 0:02:45.5]} 9. Be3 {[%clk 0:02:26.6]} 9... Bxe3
{[%clk 0:02:40.6]} 10. Qxe3 {[%clk 0:02:27.5]} 10... Nxc4 {[%clk 0:02:37.2]} 11.
dxc4 {[%clk 0:02:28.4]} 11... d6 {[%clk 0:02:37.9]} 12. O-O-O {[%clk 0:02:14.2]}
12... b6 {[%clk 0:02:37.8]} 13. f3 {[%clk 0:02:11.7]} 13... Be6 {[%clk
0:02:37.6]} 14. b3 {[%clk 0:02:08.4]} 14... Qf6 {[%clk 0:02:32.8]} 15. g4 {[%clk
0:01:44.1]} 15... Nf4 {[%clk 0:02:30.6]} 16. Nxf4 {[%clk 0:01:44.5]} 16... exf4
{[%clk 0:02:31]} 17. Qd4 {[%clk 0:01:44.3]} 17... Qe5 {[%clk 0:02:25.9]} 18.
Qxe5 {[%clk 0:01:37.3]} 18... dxe5 {[%clk 0:02:26.8]} 19. Nb5 {[%clk 0:01:30]}
19... Rfc8 {[%clk 0:02:26.1]} 20. Rd2 {[%clk 0:01:22.5]} 20... Kf8 {[%clk
0:02:25.6]} 21. Rhd1 {[%clk 0:01:22.8]} 21... Ke7 {[%clk 0:02:25.9]} 22. Nc3
{[%clk 0:01:22]} 22... c6 {[%clk 0:02:25.7]} 23. h4 {[%clk 0:01:06.2]} 23... f6
{[%clk 0:02:24.1]} 24. h5 {[%clk 0:01:05.7]} 24... gxh5 {[%clk 0:02:24.2]} 25.
Rh2 {[%clk 0:01:03.7]} 25... Bf7 {[%clk 0:02:24.5]} 26. gxh5 {[%clk 0:00:58.7]}
26... Rg8 {[%clk 0:02:24.2]} 27. c5 {[%clk 0:00:46.7]} 27... Rad8 {[%clk
0:02:22.6]} 28. Rxd8 {[%clk 0:00:42.8]} 28... Kxd8 {[%clk 0:02:20.8]} 29. cxb6
{[%clk 0:00:43.6]} 29... axb6 {[%clk 0:02:20.6]} 30. Kd2 {[%clk 0:00:43.3]}
30... h6 {[%clk 0:02:16]} 31. Ke2 {[%clk 0:00:29.7]} 31... Rg5 {[%clk
0:02:14.4]} 32. Kf2 {[%clk 0:00:28.6]} 32... Kc7 {[%clk 0:02:11.4]} 33. Ne2
{[%clk 0:00:20.5]} 33... Rxh5 {[%clk 0:02:08.8]} 34. Rg2 {[%clk 0:00:17.3]}
34... Rg5 {[%clk 0:02:07.8]} 35. Rh2 {[%clk 0:00:17.7]} 35... h5 {[%clk
0:02:08.1]} 36. Ng1 {[%clk 0:00:17.9]} 36... b5 {[%clk 0:02:05.5]} 37. Nh3
{[%clk 0:00:16.8]} 37... Rg3 {[%clk 0:02:05.5]} 38. Ng1 {[%clk 0:00:17.1]} 38...
Kb6 {[%clk 0:02:04.5]} 39. Ne2 {[%clk 0:00:17.4]} 39... Rg8 {[%clk 0:02:04.3]}
40. c3 {[%clk 0:00:15.7]} 40... Rd8 {[%clk 0:02:00.8]} 41. Rg2 {[%clk
0:00:15.5]} 41... Rd2 {[%clk 0:01:59.4]} 42. Rg7 {[%clk 0:00:15.3]} 42... Be6
{[%clk 0:02:00]} 43. Rg6 {[%clk 0:00:13.8]} 43... Rxa2 {[%clk 0:01:59.7]} 44.
Rxf6 {[%clk 0:00:13.8]} 44... Bxb3 {[%clk 0:02:00.1]} 45. Ke1 {[%clk 0:00:12.1]}
45... Bc4 {[%clk 0:02:00.1]} 46. Nc1 {[%clk 0:00:10.5]} 46... Rc2 {[%clk
0:01:59.5]} 0-1

[Event "*** Titled Tuesday Blitz"]
[Site "Chess.com"]
[Date "2021.03.02"]
[Round "1"]
[White "MarcLonoff"]
[Black "zverr1"]
[Result "1-0"]
[WhiteElo "2125"]
[BlackElo "2492"]
[TimeControl "180+1"]
[EndTime "10:05:39 PST"]
[Termination "MarcLonoff won by resignation"]

1. c4 {[%clk 0:02:57.7]} 1... e5 {[%clk 0:02:57.2]} 2. Nc3 {[%clk 0:02:57.4]}
2... Nc6 {[%clk 0:02:56]} 3. g3 {[%clk 0:02:57.5]} 3... Bc5 {[%clk 0:02:54.3]}
4. e3 {[%clk 0:02:55.3]} 4... d6 {[%clk 0:02:54.5]} 5. Bg2 {[%clk 0:02:55.3]}
5... f5 {[%clk 0:02:54.3]} 6. Nge2 {[%clk 0:02:55.2]} 6... Nf6 {[%clk
0:02:54.9]} 7. d4 {[%clk 0:02:55.2]} 7... Bb6 {[%clk 0:02:53.4]} 8. O-O {[%clk
0:02:48.6]} 8... O-O {[%clk 0:02:51.8]} 9. Nd5 {[%clk 0:02:48.5]} 9... Ne7
{[%clk 0:02:44.1]} 10. Nxb6 {[%clk 0:02:47.4]} 10... axb6 {[%clk 0:02:45]} 11.
Nc3 {[%clk 0:02:39.7]} 11... Be6 {[%clk 0:02:39.8]} 12. b3 {[%clk 0:02:33.8]}
12... c6 {[%clk 0:02:35.8]} 13. dxe5 {[%clk 0:02:31.1]} 13... dxe5 {[%clk
0:02:35.9]} 14. Bb2 {[%clk 0:02:30.9]} 14... Qe8 {[%clk 0:02:28.4]} 15. Qc2
{[%clk 0:02:26.5]} 15... Qh5 {[%clk 0:02:25]} 16. f3 {[%clk 0:02:16.6]} 16...
Qh6 {[%clk 0:02:15.2]} 17. Rfe1 {[%clk 0:02:13.7]} 17... f4 {[%clk 0:02:04.5]}
18. exf4 {[%clk 0:02:12.1]} 18... Nf5 {[%clk 0:02:01.9]} 19. Rxe5 {[%clk
0:02:03.7]} 19... Nd4 {[%clk 0:01:55.9]} 20. Qf2 {[%clk 0:01:57.9]} 20... c5
{[%clk 0:01:54]} 21. Rae1 {[%clk 0:01:51.5]} 21... Rfe8 {[%clk 0:01:43.6]} 22.
Na4 {[%clk 0:01:48]} 22... Bd7 {[%clk 0:01:26.7]} 23. Nxb6 {[%clk 0:01:33.9]}
23... Rxa2 {[%clk 0:00:51.6]} 24. Nxd7 {[%clk 0:01:22.2]} 24... Rxe5 {[%clk
0:00:44.9]} 25. Nxf6+ {[%clk 0:01:16.2]} 25... Qxf6 {[%clk 0:00:39.9]} 26. fxe5
{[%clk 0:01:13.2]} 26... Qf5 {[%clk 0:00:33.2]} 27. Bxd4 {[%clk 0:01:09.1]}
27... Rxf2 {[%clk 0:00:30]} 28. Bxf2 {[%clk 0:01:08.9]} 1-0

[Event "*** Titled Tuesday Blitz"]
[Site "Chess.com"]
[Date "2021.03.02"]
[Round "1"]
[White "JoliyRoger"]
[Black "Evachess2006"]
[Result "1-0"]
[WhiteElo "2478"]
[BlackElo "1602"]
[TimeControl "180+1"]
[EndTime "10:05:39 PST"]
[Termination "JoliyRoger won on time"]

1. Nf3 {[%clk 0:02:59.9]} 1... Nc6 {[%clk 0:02:53.8]} 2. d4 {[%clk 0:02:55.7]}
2... d5 {[%clk 0:02:46.4]} 3. Bf4 {[%clk 0:02:53.8]} 3... Bf5 {[%clk 0:02:44.2]}
4. e3 {[%clk 0:02:53]} 4... e6 {[%clk 0:02:43.2]} 5. a3 {[%clk 0:02:50.2]} 5...
Nf6 {[%clk 0:02:38.2]} 6. c4 {[%clk 0:02:50.3]} 6... Bd6 {[%clk 0:01:47.4]} 7.
Bg5 {[%clk 0:02:44.9]} 7... O-O {[%clk 0:01:39]} 8. Nc3 {[%clk 0:02:44.2]} 8...
Be7 {[%clk 0:01:34.5]} 9. Bxf6 {[%clk 0:02:34.9]} 9... Bxf6 {[%clk 0:01:26.3]}
10. cxd5 {[%clk 0:02:35.8]} 10... exd5 {[%clk 0:01:25.2]} 11. Bd3 {[%clk
0:02:32.5]} 11... Bxd3 {[%clk 0:00:59.9]} 12. Qxd3 {[%clk 0:02:32]} 12... Re8
{[%clk 0:00:37.8]} 13. O-O {[%clk 0:02:30.4]} 13... a6 {[%clk 0:00:36.2]} 14.
Rac1 {[%clk 0:02:24]} 14... Qd7 {[%clk 0:00:30]} 15. Na4 {[%clk 0:02:18.4]}
15... b5 {[%clk 0:00:17.8]} 16. Nc5 {[%clk 0:02:16.6]} 16... Qd6 {[%clk
0:00:18.1]} 17. Qc2 {[%clk 0:02:09.7]} 17... Re7 {[%clk 0:00:10.6]} 18. Nb7
{[%clk 0:02:08.8]} 18... Nxd4 {[%clk 0:00:03.9]} 19. exd4 {[%clk 0:02:02]} 19...
Qb6 {[%clk 0:00:02.9]} 20. Nc5 {[%clk 0:01:47.7]} 20... Rae8 {[%clk 0:00:03.2]}
21. Ne5 {[%clk 0:01:37.1]} 21... Bxe5 {[%clk 0:00:02.6]} 22. dxe5 {[%clk
0:01:37.7]} 22... Qc6 {[%clk 0:00:01.5]} 23. Nd3 {[%clk 0:01:35.9]} 23... Qg6
{[%clk 0:00:01.7]} 24. Rfd1 {[%clk 0:01:31.6]} 24... h6 {[%clk 0:00:01.6]} 25.
Qc6 {[%clk 0:01:30.6]} 1-0

[Event "*** Titled Tuesday Blitz"]
[Site "Chess.com"]
[Date "2021.03.02"]
[Round "1"]
[White "Tactictic"]
[Black "sergoy"]
[Result "0-1"]
[WhiteElo "2431"]
[BlackElo "2845"]
[TimeControl "180+1"]
[EndTime "10:05:47 PST"]
[Termination "sergoy won by resignation"]

1. e4 {[%clk 0:02:59.3]} 1... c5 {[%clk 0:02:58.3]} 2. Nf3 {[%clk 0:02:56.2]}
2... d6 {[%clk 0:02:51.4]} 3. d4 {[%clk 0:02:53.9]} 3... cxd4 {[%clk 0:02:50.9]}
4. Nxd4 {[%clk 0:02:54.8]} 4... Nf6 {[%clk 0:02:49.2]} 5. Nc3 {[%clk 0:02:53.7]}
5... a6 {[%clk 0:02:39.4]} 6. Be3 {[%clk 0:02:40.9]} 6... e5 {[%clk 0:02:38.3]}
7. Nf3 {[%clk 0:02:20.7]} 7... Be7 {[%clk 0:02:35]} 8. Bc4 {[%clk 0:01:50.2]}
8... O-O {[%clk 0:02:30.5]} 9. O-O {[%clk 0:01:49.3]} 9... Be6 {[%clk
0:02:25.2]} 10. Bb3 {[%clk 0:01:40.3]} 10... b5 {[%clk 0:02:20.4]} 11. Bg5
{[%clk 0:01:28.5]} 11... Nbd7 {[%clk 0:02:19.4]} 12. Re1 {[%clk 0:01:26.5]}
12... Qc7 {[%clk 0:02:13]} 13. Bxf6 {[%clk 0:01:03]} 13... Nxf6 {[%clk
0:02:12.7]} 14. Nd2 {[%clk 0:00:33.3]} 14... Rac8 {[%clk 0:02:10.1]} 15. Nf1
{[%clk 0:00:31.8]} 15... b4 {[%clk 0:02:07.9]} 16. Nd5 {[%clk 0:00:31.7]} 16...
Nxd5 {[%clk 0:02:07.5]} 17. exd5 {[%clk 0:00:31.5]} 17... Bd7 {[%clk 0:02:06.6]}
18. a3 {[%clk 0:00:23.9]} 18... a5 {[%clk 0:02:00.3]} 19. axb4 {[%clk
0:00:23.8]} 19... axb4 {[%clk 0:02:01.2]} 20. Ne3 {[%clk 0:00:11.3]} 20... f5
{[%clk 0:01:54.5]} 21. Nc4 {[%clk 0:00:11]} 21... e4 {[%clk 0:01:53.2]} 22. f3
{[%clk 0:00:09.7]} 22... Bb5 {[%clk 0:01:49]} 23. Nd2 {[%clk 0:00:07.2]} 23...
e3 {[%clk 0:01:46.2]} 24. Nb1 {[%clk 0:00:01.7]} 24... f4 {[%clk 0:01:45.6]} 25.
Qc1 {[%clk 0:00:02.1]} 25... Bf6 {[%clk 0:01:45.7]} 26. c3 {[%clk 0:00:02.3]}
26... bxc3 {[%clk 0:01:45.9]} 27. Nxc3 {[%clk 0:00:03]} 27... Bxc3 {[%clk
0:01:45.9]} 28. bxc3 {[%clk 0:00:03.9]} 28... Qxc3 {[%clk 0:01:46.3]} 29. Qxc3
{[%clk 0:00:04.8]} 29... Rxc3 {[%clk 0:01:46.3]} 30. Rab1 {[%clk 0:00:04.7]}
30... Bd3 {[%clk 0:01:46]} 31. Rb2 {[%clk 0:00:01.8]} 31... Rb8 {[%clk
0:01:45.7]} 32. Rd1 {[%clk 0:00:01.5]} 32... Rcxb3 {[%clk 0:01:45.5]} 33. Rxd3
{[%clk 0:00:01.4]} 33... Rxb2 {[%clk 0:01:44.3]} 0-1

[Event "*** Titled Tuesday Blitz"]
[Site "Chess.com"]
[Date "2021.03.02"]
[Round "1"]
[White "The_Machine04"]
[Black "Shield12"]
[Result "0-1"]
[WhiteElo "2434"]
[BlackElo "2847"]
[TimeControl "180+1"]
[EndTime "10:05:53 PST"]
[Termination "Shield12 won by resignation"]

1. d4 {[%clk 0:02:59.9]} 1... Nf6 {[%clk 0:02:59.3]} 2. Bg5 {[%clk 0:02:59.4]}
2... c5 {[%clk 0:02:57.5]} 3. Bxf6 {[%clk 0:02:54.9]} 3... gxf6 {[%clk
0:02:58.4]} 4. d5 {[%clk 0:02:48.7]} 4... Qb6 {[%clk 0:02:57.9]} 5. Qc1 {[%clk
0:02:42.8]} 5... f5 {[%clk 0:02:57.3]} 6. c4 {[%clk 0:02:39.9]} 6... Bg7 {[%clk
0:02:57.2]} 7. Nc3 {[%clk 0:02:38.6]} 7... d6 {[%clk 0:02:57.8]} 8. Qc2 {[%clk
0:02:38.5]} 8... Nd7 {[%clk 0:02:57.2]} 9. e3 {[%clk 0:02:32.5]} 9... Nf6 {[%clk
0:02:57]} 10. Bd3 {[%clk 0:02:31]} 10... Ne4 {[%clk 0:02:57.1]} 11. Nge2 {[%clk
0:02:26.6]} 11... Nxc3 {[%clk 0:02:53.1]} 12. Nxc3 {[%clk 0:02:27.5]} 12... e6
{[%clk 0:02:45.9]} 13. O-O {[%clk 0:02:25.8]} 13... O-O {[%clk 0:02:44]} 14.
Rac1 {[%clk 0:02:25]} 14... Kh8 {[%clk 0:02:41.3]} 15. Be2 {[%clk 0:02:23.1]}
15... Rg8 {[%clk 0:02:38.9]} 16. Bf3 {[%clk 0:02:22.6]} 16... e5 {[%clk
0:02:38]} 17. Kh1 {[%clk 0:02:20.7]} 17... Qd8 {[%clk 0:02:34.9]} 18. a3 {[%clk
0:02:19.7]} 18... Qg5 {[%clk 0:02:31.1]} 19. g3 {[%clk 0:02:17.7]} 19... Bd7
{[%clk 0:02:28.9]} 20. Rb1 {[%clk 0:02:12.7]} 20... a5 {[%clk 0:02:20.2]} 21. a4
{[%clk 0:02:06.1]} 21... Qh6 {[%clk 0:02:10.9]} 22. b3 {[%clk 0:02:05.1]} 22...
f4 {[%clk 0:02:08.8]} 23. exf4 {[%clk 0:02:03.7]} 23... exf4 {[%clk 0:02:09.7]}
24. Rbe1 {[%clk 0:02:01.5]} 24... Be5 {[%clk 0:02:05.1]} 25. Rxe5 {[%clk
0:01:46.7]} 25... dxe5 {[%clk 0:02:04.8]} 26. Qe4 {[%clk 0:01:46.7]} 26... Rae8
{[%clk 0:02:01.6]} 27. d6 {[%clk 0:01:33.8]} 27... Bc6 {[%clk 0:02:00.3]} 28.
Nd5 {[%clk 0:01:30.9]} 28... Qxd6 {[%clk 0:01:59.8]} 29. Qf5 {[%clk 0:01:30.3]}
29... Qg6 {[%clk 0:01:58]} 30. Qxg6 {[%clk 0:01:25.3]} 30... hxg6 {[%clk
0:01:56.8]} 31. Kg2 {[%clk 0:01:24.3]} 31... e4 {[%clk 0:01:56.4]} 32. Bg4
{[%clk 0:01:21.3]} 32... f5 {[%clk 0:01:56]} 33. Bh3 {[%clk 0:01:21.2]} 33...
f3+ {[%clk 0:01:55.5]} 34. Kg1 {[%clk 0:01:21.2]} 34... Bxd5 {[%clk 0:01:56.4]}
35. cxd5 {[%clk 0:01:21.1]} 35... Kg7 {[%clk 0:01:57.3]} 36. Rd1 {[%clk
0:01:21.3]} 36... Rd8 {[%clk 0:01:52.7]} 37. Bf1 {[%clk 0:01:21.6]} 37... Rd6
{[%clk 0:01:52.7]} 38. Bc4 {[%clk 0:01:21.3]} 38... Kf6 {[%clk 0:01:52.9]} 39.
h4 {[%clk 0:01:21.6]} 39... Ke5 {[%clk 0:01:53.1]} 40. Kf1 {[%clk 0:01:21.9]}
40... Rgd8 {[%clk 0:01:53]} 41. Ke1 {[%clk 0:01:21.8]} 41... b6 {[%clk
0:01:51.1]} 42. Rd2 {[%clk 0:01:19.5]} 42... f4 {[%clk 0:01:50.6]} 43. gxf4+
{[%clk 0:01:17.6]} 43... Kxf4 {[%clk 0:01:51.5]} 44. Kd1 {[%clk 0:01:18.4]}
44... Rh8 {[%clk 0:01:51]} 45. Kc2 {[%clk 0:01:16.7]} 45... Rxh4 {[%clk
0:01:51.4]} 46. Rd1 {[%clk 0:01:17.6]} 46... Rh2 {[%clk 0:01:51.4]} 47. Rd2
{[%clk 0:01:17.6]} 47... g5 {[%clk 0:01:51.2]} 48. Kc3 {[%clk 0:01:17.7]} 48...
g4 {[%clk 0:01:51.6]} 49. Rc2 {[%clk 0:01:17.8]} 49... g3 {[%clk 0:01:51.7]} 50.
fxg3+ {[%clk 0:01:18.1]} 50... Kxg3 {[%clk 0:01:52.6]} 51. Rxh2 {[%clk
0:01:17.7]} 51... Kxh2 {[%clk 0:01:52.8]} 52. Kd2 {[%clk 0:01:18.6]} 52... f2
{[%clk 0:01:43.2]} 53. Ke3 {[%clk 0:01:19.5]} 53... Rxd5 {[%clk 0:01:41]} 54.
Kxf2 {[%clk 0:01:17.8]} 54... Rd4 {[%clk 0:01:39.9]} 55. Ke3 {[%clk 0:01:17.7]}
55... Kg3 {[%clk 0:01:39.3]} 56. Bb5 {[%clk 0:01:17.9]} 56... Kg4 {[%clk
0:01:38.4]} 57. Bc6 {[%clk 0:01:16.6]} 57... Kf5 {[%clk 0:01:38.3]} 58. Bb5
{[%clk 0:01:16.9]} 58... Ke5 {[%clk 0:01:38.7]} 59. Bc4 {[%clk 0:01:16.8]} 59...
Rxc4 {[%clk 0:01:38.1]} 60. bxc4 {[%clk 0:01:17.7]} 60... Kf5 {[%clk 0:01:38.6]}
61. Ke2 {[%clk 0:01:16.7]} 61... Kf4 {[%clk 0:01:39.5]} 62. Kf2 {[%clk
0:01:17.3]} 62... e3+ {[%clk 0:01:40.4]} 63. Ke2 {[%clk 0:01:17.9]} 63... Ke4
{[%clk 0:01:41.3]} 64. Ke1 {[%clk 0:01:18.8]} 64... Kd3 {[%clk 0:01:42.2]} 65.
Kd1 {[%clk 0:01:19.1]} 65... Kxc4 {[%clk 0:01:42.7]} 66. Ke2 {[%clk 0:01:19.7]}
66... Kd4 {[%clk 0:01:43.3]} 0-1

[Event "*** Titled Tuesday Blitz"]
[Site "Chess.com"]
[Date "2021.03.02"]
[Round "1"]
[White "Jan1401"]
[Black "Gabrielian_Artur"]
[Result "0-1"]
[WhiteElo "2412"]
[BlackElo "2784"]
[TimeControl "180+1"]
[EndTime "10:05:54 PST"]
[Termination "Gabrielian_Artur won by checkmate"]

1. e4 {[%clk 0:03:00.9]} 1... c5 {[%clk 0:02:59.6]} 2. Nf3 {[%clk 0:03:00.7]}
2... d6 {[%clk 0:03:00.1]} 3. Bb5+ {[%clk 0:03:00.3]} 3... Nd7 {[%clk
0:02:59.7]} 4. O-O {[%clk 0:02:59.3]} 4... a6 {[%clk 0:03:00.2]} 5. Bd3 {[%clk
0:02:58.9]} 5... Ngf6 {[%clk 0:03:00]} 6. Re1 {[%clk 0:02:58.9]} 6... b5 {[%clk
0:02:59.8]} 7. c4 {[%clk 0:02:59]} 7... b4 {[%clk 0:02:55.3]} 8. a3 {[%clk
0:02:55.9]} 8... Bb7 {[%clk 0:02:48.7]} 9. Bc2 {[%clk 0:02:53.8]} 9... e5 {[%clk
0:02:48.1]} 10. axb4 {[%clk 0:02:47.3]} 10... cxb4 {[%clk 0:02:47.8]} 11. d4
{[%clk 0:02:47.5]} 11... Be7 {[%clk 0:02:47.6]} 12. d5 {[%clk 0:02:23.6]} 12...
Nc5 {[%clk 0:02:39.1]} 13. Nbd2 {[%clk 0:02:21.7]} 13... Nfd7 {[%clk 0:02:35.9]}
14. Nb3 {[%clk 0:02:16.9]} 14... a5 {[%clk 0:02:36.1]} 15. Nxc5 {[%clk
0:02:15.6]} 15... Nxc5 {[%clk 0:02:35.9]} 16. Ba4+ {[%clk 0:02:15.1]} 16... Kf8
{[%clk 0:02:34.1]} 17. Qc2 {[%clk 0:02:03.4]} 17... h5 {[%clk 0:02:27]} 18. Be3
{[%clk 0:02:00]} 18... Qc7 {[%clk 0:02:26.3]} 19. Nd2 {[%clk 0:01:59]} 19... Rc8
{[%clk 0:02:20.2]} 20. Rec1 {[%clk 0:01:57.3]} 20... h4 {[%clk 0:02:17.7]} 21.
h3 {[%clk 0:01:53.6]} 21... g5 {[%clk 0:02:13]} 22. f3 {[%clk 0:01:52.5]} 22...
Kg7 {[%clk 0:02:12.1]} 23. Nb3 {[%clk 0:01:52.1]} 23... Nxb3 {[%clk 0:01:56.1]}
24. Qxb3 {[%clk 0:01:51.4]} 24... Qb8 {[%clk 0:01:49.8]} 25. Bb5 {[%clk
0:01:49.1]} 25... Qc7 {[%clk 0:01:50.2]} 26. Ra4 {[%clk 0:01:39.5]} 26... Ra8
{[%clk 0:01:49.4]} 27. Rca1 {[%clk 0:01:39.5]} 27... Rhc8 {[%clk 0:01:47.4]} 28.
Qa2 {[%clk 0:01:39]} 28... Bd8 {[%clk 0:01:47.5]} 29. Qb3 {[%clk 0:01:35.7]}
29... f6 {[%clk 0:01:47.4]} 30. Qc2 {[%clk 0:01:35.7]} 30... Qb8 {[%clk
0:01:37.7]} 31. Qb3 {[%clk 0:01:35.5]} 31... Ba6 {[%clk 0:01:33.4]} 32. Bc6
{[%clk 0:01:32.1]} 32... Bb7 {[%clk 0:01:32.8]} 33. Bb5 {[%clk 0:01:31.5]} 33...
Ba6 {[%clk 0:01:33]} 34. Bc6 {[%clk 0:01:31.1]} 34... Ra7 {[%clk 0:01:31.7]} 35.
Kh2 {[%clk 0:01:29.9]} 35... Rf7 {[%clk 0:01:25.2]} 36. c5 {[%clk 0:01:27.8]}
36... f5 {[%clk 0:01:15.4]} 37. exf5 {[%clk 0:01:22.8]} 37... dxc5 {[%clk
0:01:12.8]} 38. Bxc5 {[%clk 0:01:13.9]} 38... Rxf5 {[%clk 0:01:07.8]} 39. Bd7
{[%clk 0:01:12.7]} 39... e4+ {[%clk 0:01:03.1]} 40. Kh1 {[%clk 0:01:10.5]} 40...
Rxf3 {[%clk 0:01:03.2]} 41. gxf3 {[%clk 0:01:07.3]} 41... Rxc5 {[%clk
0:01:03.4]} 42. Qe3 {[%clk 0:01:03.8]} 42... Rc2 {[%clk 0:00:56.1]} 43. Rg1
{[%clk 0:01:02.8]} 43... Qh2# {[%clk 0:00:54.4]} 0-1